bitfinex/quotes_BTCUSD_20250709
["timestamp","ask_amount","ask_price","bid_price","bid_amount"]
[1752035208930,1.09698552,108490.0,108480.0,0.05814429]
[1752035209136,1.09698552,108490.0,108480.0,0.06462765]
[1752035212122,1.09698552,108490.0,108480.0,0.04242765]
[1752035213806,1.09698552,108490.0,108480.0,0.04242879]
[1752035222240,0.95774552,108490.0,108480.0,0.06432879]
[1752035222439,0.79092083,108490.0,108480.0,0.06432879]
[1752035223212,1.09690552,108490.0,108480.0,0.06432879]
[1752035230505,1.09690552,108490.0,108480.0,0.06433762]
[1752035232403,0.79092083,108490.0,108480.0,0.06433762]
[1752035232604,1.09690552,108490.0,108480.0,0.06433762]
[1752035238189,0.95774552,108490.0,108480.0,0.02013762]
[1752035238368,1.30853021,108490.0,108480.0,0.02013762]
[1752035238574,1.14170552,108490.0,108480.0,0.02013762]
[1752035239824,1.44769021,108490.0,108480.0,0.02013762]
[1752035240138,1.44769021,108490.0,108480.0,0.03743733]
[1752035240337,1.14170552,108490.0,108480.0,0.03743733]
[1752035242314,1.14170552,108490.0,108480.0,0.03743536]
[1752035244990,0.83572083,108490.0,108480.0,0.03743536]
[1752035245211,1.14170552,108490.0,108480.0,0.03743078]
[1752035249276,0.65176083,108490.0,108480.0,0.03743078]
[1752035249489,0.003,108490.0,108480.0,0.89630208]
[1752035249702,0.003,108490.0,108480.0,0.89687203]
[1752035249703,0.01221684,108490.0,108480.0,0.89687203]
[1752035249899,0.01843275,108500.0,108490.0,0.20278322]
[1752035250104,0.02769307,108510.0,108500.0,0.24786462]
[1752035250425,0.03690872,108510.0,108500.0,0.92510935]
[1752035250666,0.03690872,108510.0,108500.0,0.62834091]
[1752035250667,0.35124829,108510.0,108500.0,0.62834091]
[1752035250872,0.34203281,108510.0,108500.0,0.61912466]
[1752035251088,0.33281724,108510.0,108500.0,0.61263711]
[1752035251286,0.33281724,108510.0,108500.0,0.61911184]
[1752035251901,0.19357724,108510.0,108500.0,0.61911184]
[1752035252058,0.33281724,108510.0,108500.0,0.57761969]
[1752035252477,0.32360159,108510.0,108500.0,0.06887022]
[1752035252691,0.32560159,108510.0,108500.0,0.37885491]
[1752035252894,0.32560159,108510.0,108500.0,0.07287022]
[1752035253937,0.32560159,108510.0,108500.0,0.0820868]
[1752035254812,0.32560159,108510.0,108500.0,0.07287022]
[1752035255264,0.32560159,108510.0,108500.0,0.05557473]
[1752035256956,0.32560159,108510.0,108500.0,0.06479131]
[1752035257810,0.32560159,108510.0,108500.0,0.06477202]
[1752035259777,0.32560159,108510.0,108500.0,0.37086917]
[1752035259987,0.32560159,108510.0,108500.0,0.37086684]
[1752035260449,0.32560159,108510.0,108500.0,0.56441513]
[1752035264623,0.32560159,108510.0,108500.0,0.56450913]
[1752035264832,0.32560159,108510.0,108500.0,0.58294187]
[1752035266083,0.32560159,108510.0,108500.0,0.27684149]
[1752035269125,0.32560159,108510.0,108500.0,0.27684161]
[1752035269660,0.33481724,108510.0,108500.0,0.27684161]
[1752035269929,0.33481724,108510.0,108500.0,0.28605786]
[1752035272391,0.33481724,108510.0,108500.0,0.27684161]
[1752035272630,0.33481724,108510.0,108500.0,0.41600161]
[1752035273083,0.33481724,108510.0,108500.0,0.27684161]
[1752035273845,0.33481724,108510.0,108500.0,0.28605786]
[1752035274042,0.33481724,108510.0,108500.0,0.42521786]
[1752035275055,0.33481724,108510.0,108500.0,0.73129093]
[1752035278152,0.33481724,108510.0,108500.0,0.77278308]
[1752035279135,0.33481724,108510.0,108500.0,0.81889022]
[1752035279405,0.32616787,108510.0,108500.0,0.82753729]
[1752035280034,0.32616787,108510.0,108500.0,0.83675354]
[1752035281146,0.34459901,108510.0,108500.0,0.83675312]
[1752035282012,0.34459901,108510.0,108500.0,0.82753696]
[1752035282646,0.33538361,108510.0,108500.0,0.81832071]
[1752035282995,0.32616796,108510.0,108500.0,0.80910438]
[1752035283222,0.31695222,108510.0,108500.0,0.79988797]
[1752035283442,0.62302529,108510.0,108500.0,0.11600661]
[1752035283652,0.31695222,108510.0,108500.0,0.56119968]
[1752035284280,0.31695222,108510.0,108500.0,0.25512661]
[1752035284458,0.31695222,108510.0,108500.0,0.30082661]
[1752035284663,0.31695222,108510.0,108500.0,0.25512661]
[1752035284918,0.62302529,108510.0,108500.0,0.25512661]
[1752035286223,0.62302529,108510.0,108500.0,0.44867498]
[1752035288383,0.31695222,108510.0,108500.0,0.75474805]
[1752035289932,0.31695222,108510.0,108500.0,0.79744805]
[1752035290357,0.31695222,108510.0,108500.0,0.30704319]
[1752035290576,0.31695222,108510.0,108500.0,0.61311626]
[1752035290969,0.31695222,108510.0,108500.0,0.59181626]
[1752035291386,0.31695222,108510.0,108500.0,0.57041626]
[1752035292209,0.31695222,108510.0,108500.0,0.57045396]
[1752035293043,0.17771222,108510.0,108500.0,0.57045396]
[1752035293250,0.31691222,108510.0,108500.0,0.61655396]
[1752035294106,0.31691222,108510.0,108500.0,0.31048089]
[1752035295814,0.31691222,108510.0,108500.0,0.50402918]
[1752035296700,0.31691222,108510.0,108500.0,0.81010225]
[1752035296941,0.31691222,108510.0,108500.0,0.61655396]
[1752035297612,0.31691222,108510.0,108500.0,0.81010225]
[1752035297822,0.62298529,108510.0,108500.0,0.81010225]
[1752035298686,0.31691222,108510.0,108500.0,0.81010225]
[1752035303251,0.30599045,108510.0,108500.0,0.81010225]
[1752035304069,0.30599045,108510.0,108500.0,0.50402918]
[1752035305645,0.30599045,108510.0,108500.0,0.49481268]
[1752035305854,0.30599045,108510.0,108500.0,0.25516431]
[1752035306066,0.61206352,108510.0,108500.0,0.25516431]
[1752035310151,0.61206352,108510.0,108500.0,0.25516478]
[1752035310367,0.30599045,108510.0,108500.0,0.25516478]
[1752035310783,0.30599045,108510.0,108500.0,0.26438136]
[1752035310990,0.61206352,108510.0,108500.0,0.26438136]
[1752035311217,0.61206352,108510.0,108500.0,0.44871315]
[1752035312383,0.30599045,108510.0,108500.0,0.44871315]
[1752035313470,0.61206352,108510.0,108500.0,0.44871315]
[1752035314853,0.30599045,108510.0,108500.0,0.44871315]
[1752035315033,0.30599045,108510.0,108500.0,0.26438136]
[1752035316422,0.30599045,108510.0,108500.0,0.25516478]
[1752035316852,0.61206352,108510.0,108500.0,0.44871315]
[1752035317268,0.31520559,108510.0,108500.0,0.80830272]
[1752035317481,0.32442133,108510.0,108500.0,0.81751913]
[1752035317690,0.31520619,108510.0,108500.0,0.81751913]
[1752035318334,0.002,108510.0,108500.0,1.18353493]
[1752035318542,0.01121497,108510.0,108500.0,1.18353493]
[1752035319214,0.14881438,108520.0,108510.0,0.24794568]
[1752035319396,0.17645785,108520.0,108510.0,0.620439]
[1752035319806,0.18567274,108520.0,108510.0,0.61122386]
[1752035320013,0.18567274,108520.0,108510.0,0.28275079]
[1752035320277,0.17645862,108520.0,108510.0,0.58882386]
[1752035321000,0.36175644,108520.0,108510.0,0.58060863]
[1752035321212,0.36175644,108520.0,108510.0,0.60380863]
[1752035321417,0.36175644,108520.0,108510.0,0.61302386]
[1752035322061,0.36171644,108520.0,108510.0,0.61302386]
[1752035322496,0.36171644,108520.0,108510.0,0.62166688]
[1752035322927,0.16820373,108520.0,108510.0,0.63088202]
[1752035323131,0.17741862,108520.0,108510.0,0.63088202]
[1752035324187,0.16820373,108520.0,108510.0,0.63088202]
[1752035324622,0.1589885,108520.0,108510.0,0.63088202]
[1752035324817,0.16824296,108520.0,108510.0,0.68621243]
[1752035325063,0.17745751,108520.0,108510.0,0.68621243]
[1752035325245,0.18667223,108520.0,108510.0,0.68621243]
[1752035326129,0.18767223,108520.0,108510.0,0.68821243]
[1752035326354,0.18767214,108520.0,108510.0,0.38213936]
[1752035326619,0.18767214,108520.0,108510.0,0.68821243]
[1752035326867,0.04707214,108520.0,108510.0,0.68721243]
[1752035327281,0.04807214,108520.0,108510.0,0.69021243]
[1752035327483,0.04707214,108520.0,108510.0,0.68721243]
[1752035327708,0.02764296,108520.0,108510.0,0.68521243]
[1752035327956,0.03685751,108520.0,108510.0,0.69021243]
[1752035328161,0.03885751,108520.0,108510.0,0.69319815]
[1752035328366,0.04807214,108520.0,108510.0,0.69319815]
[1752035330022,0.04807214,108520.0,108510.0,0.38712508]
[1752035330202,0.04807214,108520.0,108510.0,0.69319815]
[1752035330738,0.04807214,108520.0,108510.0,0.83275815]
[1752035332595,0.03885751,108520.0,108510.0,0.83275815]
[1752035334039,0.04807223,108520.0,108510.0,0.83275815]
[1752035335043,0.04807223,108520.0,108510.0,0.83275573]
[1752035336402,0.03885751,108520.0,108510.0,0.83275573]
[1752035337121,0.03885751,108520.0,108510.0,0.83275238]
[1752035337507,0.02964296,108520.0,108510.0,0.83275238]
[1752035337709,0.03885759,108520.0,108510.0,0.83275238]
[1752035337914,0.03885751,108520.0,108510.0,0.83275238]
[1752035338514,0.03885759,108520.0,108510.0,0.83275238]
[1752035338931,0.02042841,108520.0,108510.0,0.83275238]
[1752035339140,0.02964287,108520.0,108510.0,0.83275238]
[1752035339810,0.02964287,108520.0,108510.0,0.8327528]
[1752035339983,0.02964287,108520.0,108510.0,0.52667973]
[1752035340201,0.02964287,108520.0,108510.0,0.8327528]
[1752035341078,0.02042841,108520.0,108510.0,0.8327528]
[1752035342155,0.01121412,108520.0,108510.0,0.8327528]
[1752035342372,0.02042833,108520.0,108510.0,0.8327528]
[1752035342607,0.02964279,108520.0,108510.0,0.8327528]
[1752035343335,0.03885742,108520.0,108510.0,0.8327528]
[1752035344065,0.04807222,108520.0,108510.0,0.50331973]
[1752035344272,0.04807299,108520.0,108510.0,0.48051973]
[1752035344891,0.53844388,108520.0,108510.0,0.33190459]
[1752035345100,0.53844388,108520.0,108510.0,0.47130459]
[1752035345318,0.34493117,108520.0,108510.0,0.48051973]
[1752035347305,0.34493117,108520.0,108510.0,0.43901647]
[1752035348235,0.35414606,108520.0,108510.0,0.29961647]
[1752035348435,0.35414606,108520.0,108510.0,0.43897647]
[1752035348639,0.35414606,108520.0,108510.0,0.43901647]
[1752035349043,0.35414606,108520.0,108510.0,0.29961647]
[1752035349244,0.53844388,108520.0,108510.0,0.29040133]
[1752035349511,0.53276051,108520.0,108510.0,0.01829529]
[1752035349678,0.67098804,108520.0,108510.0,0.3236748]
[1752035350035,0.67098804,108520.0,108510.0,0.36860817]
[1752035350258,0.67098804,108520.0,108510.0,0.21081729]
[1752035350489,0.67098804,108520.0,108510.0,0.35017729]
[1752035350774,0.49958578,108520.0,108510.0,0.32697124]
[1752035350987,0.51686924,108520.0,108510.0,0.121495]
[1752035351192,0.21079617,108520.0,108510.0,0.4451698]
[1752035351410,0.51686924,108520.0,108510.0,0.43982875]
[1752035351629,0.51686924,108520.0,108510.0,0.36607738]
[1752035351849,0.21079617,108520.0,108510.0,0.36607738]
[1752035352075,0.51686924,108520.0,108510.0,0.30150261]
[1752035352499,0.50765435,108520.0,108510.0,0.31071826]
[1752035352714,0.50765435,108520.0,108510.0,0.14865574]
[1752035352903,0.50765435,108520.0,108510.0,0.13944]
[1752035353149,0.50765435,108520.0,108510.0,0.08408097]
[1752035353555,0.50765435,108520.0,108510.0,0.11983855]
[1752035353794,0.50765435,108520.0,108510.0,0.25927855]
[1752035354005,0.50765435,108520.0,108510.0,0.14857895]
[1752035354884,0.50765435,108520.0,108510.0,0.33289375]
[1752035355094,0.20158128,108520.0,108510.0,0.19353045]
[1752035355730,0.18958893,108520.0,108510.0,0.19353045]
[1752035355961,0.17230547,108520.0,108510.0,0.2108254]
[1752035356174,0.17230547,108520.0,108510.0,0.22925671]
[1752035356831,0.17230547,108520.0,108510.0,0.23847219]
[1752035357065,0.13909591,108520.0,108510.0,0.23847219]
[1752035357713,0.11810931,108520.0,108510.0,0.23847219]
[1752035358156,0.12732411,108520.0,108510.0,0.59886057]
[1752035358432,0.16708424,108520.0,108510.0,0.59886006]
[1752035359056,0.14494455,108520.0,108510.0,0.59886006]
[1752035359268,0.16337424,108520.0,108510.0,0.59886006]
[1752035359691,0.13938958,108520.0,108510.0,0.59886006]
[1752035359878,0.13938924,108520.0,108510.0,0.59885955]
[1752035360335,0.13938924,108520.0,108510.0,0.59885951]
[1752035360992,0.11724956,108520.0,108510.0,0.59885951]
[1752035361199,0.11724956,108520.0,108510.0,0.73825951]
[1752035361603,0.10525731,108520.0,108510.0,0.59885942]
[1752035362438,0.11447152,108520.0,108510.0,0.59885942]
[1752035363055,0.08126227,108520.0,108510.0,0.59885942]
[1752035363878,0.07204755,108520.0,108510.0,0.59885942]
[1752035364089,0.87905391,108530.0,108520.0,0.00921489]
[1752035364298,1.01846072,108530.0,108520.0,0.04890251]
[1752035364509,1.01246461,108530.0,108520.0,0.06562966]
[1752035364978,0.00204681,108530.0,108520.0,0.55600055]
[1752035365188,0.16904782,108530.0,108520.0,0.60644419]
[1752035365400,0.16904782,108530.0,108520.0,0.62914419]
[1752035365401,0.179261,108530.0,108520.0,0.62914419]
[1752035365612,0.01021327,108530.0,108520.0,0.62914419]
[1752035365842,0.16900024,108530.0,108520.0,0.7408155]
[1752035366305,0.17821377,108530.0,108520.0,0.71703526]
[1752035366513,0.17721377,108530.0,108520.0,0.60536395]
[1752035366984,0.17721377,108530.0,108520.0,0.60736395]
[1752035367203,0.16900016,108530.0,108520.0,0.41256219]
[1752035367409,0.17821386,108530.0,108520.0,0.71863526]
[1752035367623,0.16900016,108530.0,108520.0,0.71863526]
[1752035367836,0.17821386,108530.0,108520.0,0.71863526]
[1752035368041,0.17821386,108530.0,108520.0,0.70998804]
[1752035368266,0.18742773,108530.0,108520.0,0.40391497]
[1752035368476,0.18742773,108530.0,108520.0,0.70998804]
[1752035368891,0.18742773,108530.0,108520.0,0.66688804]
[1752035369734,0.1874285,108530.0,108520.0,0.66688804]
[1752035369946,0.36249598,108530.0,108520.0,0.65767375]
[1752035370156,0.36249598,108530.0,108520.0,0.66688821]
[1752035370781,0.36249598,108530.0,108520.0,0.36081514]
[1752035371210,0.33485488,108530.0,108520.0,0.14887351]
[1752035371427,0.33485488,108530.0,108520.0,0.35160085]
[1752035372275,0.33485488,108530.0,108520.0,0.24092954]
[1752035373126,0.33485488,108530.0,108520.0,0.35160085]
[1752035374444,0.33485488,108530.0,108520.0,0.3608154]
[1752035375497,0.33485488,108530.0,108520.0,0.66688847]
[1752035375700,0.21033056,108530.0,108520.0,0.66688847]
[1752035376575,0.21033056,108530.0,108520.0,0.24092954]
[1752035376789,0.21033056,108530.0,108520.0,0.54700261]
[1752035378328,0.20111652,108530.0,108520.0,0.24092954]
[1752035378543,0.20111652,108530.0,108520.0,0.54700261]
[1752035378751,0.20111652,108530.0,108520.0,0.53778789]
[1752035379374,0.20111652,108530.0,108520.0,0.23171482]
[1752035379585,0.54958959,108530.0,108520.0,0.0382022]
[1752035381082,0.67315391,108530.0,108520.0,0.0382022]
[1752035381953,0.36708084,108530.0,108520.0,0.0382022]
[1752035382160,0.63075391,108530.0,108520.0,0.03815977]
[1752035383415,0.63075391,108530.0,108520.0,0.04737466]
[1752035383629,0.63075391,108530.0,108520.0,0.13028128]
[1752035383880,0.32476084,108530.0,108520.0,0.13028128]
[1752035384304,0.32476084,108530.0,108520.0,0.43635435]
[1752035384515,0.32476084,108530.0,108520.0,0.44556915]
[1752035384748,0.32476084,108530.0,108520.0,0.65635459]
[1752035384969,0.20115608,108530.0,108520.0,0.41145411]
[1752035385139,0.20115608,108530.0,108520.0,0.71752718]
[1752035385802,0.19516033,108530.0,108520.0,0.66225365]
[1752035386241,0.19516033,108530.0,108520.0,0.67146828]
[1752035386470,0.19516033,108530.0,108520.0,0.68068283]
[1752035386883,0.21358815,108530.0,108520.0,0.71309721]
[1752035387089,0.21358815,108530.0,108520.0,0.73429721]
[1752035387298,0.21358815,108530.0,108520.0,0.72508283]
[1752035388299,0.21358815,108530.0,108520.0,0.70388283]
[1752035388499,0.21358815,108530.0,108520.0,0.39780976]
[1752035388719,0.34218866,108530.0,108520.0,0.71310999]
[1752035389458,0.34218866,108530.0,108520.0,0.69583888]
[1752035389666,0.34218866,108530.0,108520.0,0.71311654]
[1752035389882,0.34218866,108530.0,108520.0,0.68991654]
[1752035390092,0.15786748,108530.0,108520.0,0.71798617]
[1752035390724,0.15786748,108530.0,108520.0,0.71612759]
[1752035390926,0.16708032,108530.0,108520.0,0.71612759]
[1752035391139,0.03685419,108530.0,108520.0,0.71612759]
[1752035391360,0.1762941,108530.0,108520.0,0.71612759]
[1752035392401,0.18550797,108530.0,108520.0,0.71612759]
[1752035393229,0.04606865,108530.0,108520.0,0.70691338]
[1752035394890,0.03407765,108530.0,108520.0,0.71740041]
[1752035395068,0.04329126,108530.0,108520.0,0.71740041]
[1752035395305,0.04329126,108530.0,108520.0,0.71741082]
[1752035395700,0.04329126,108530.0,108520.0,0.73469746]
[1752035396117,0.04329126,108530.0,108520.0,0.73471427]
[1752035398950,0.04329126,108530.0,108520.0,0.71742763]
[1752035399162,0.04329126,108530.0,108520.0,0.69392763]
[1752035399776,0.04329126,108530.0,108520.0,0.71121437]
[1752035400190,0.03429801,108530.0,108520.0,0.71121437]
[1752035400611,0.03429801,108530.0,108520.0,0.4051413]
[1752035400824,0.01565043,108530.0,108520.0,0.69392763]
[1752035401035,0.0248643,108530.0,108520.0,0.58325632]
[1752035402059,0.03407808,108530.0,108520.0,0.58325632]
[1752035402924,0.03407808,108530.0,108520.0,0.60054199]
[1752035403128,0.04329152,108530.0,108520.0,0.57754199]
[1752035403435,0.0368547,108530.0,108520.0,0.57754199]
[1752035404076,0.0368547,108530.0,108520.0,0.27146892]
[1752035404348,0.2358918,108540.0,108530.0,0.20270832]
[1752035404570,0.68206473,108540.0,108530.0,0.39737182]
[1752035404789,0.68206473,108540.0,108530.0,0.70344489]
[1752035404997,0.68206473,108540.0,108530.0,0.67946923]
[1752035405223,0.68206473,108540.0,108530.0,0.65734505]
[1752035406078,0.68306473,108540.0,108530.0,0.65834505]
[1752035406571,0.6738518,108540.0,108530.0,0.64913135]
[1752035407014,0.6738518,108540.0,108530.0,0.6167197]
[1752035407234,0.66278324,108540.0,108530.0,0.65834189]
[1752035407464,0.66278324,108540.0,108530.0,0.66755559]
[1752035408321,0.35221302,108540.0,108530.0,0.81720903]
[1752035408541,0.003,108540.0,108530.0,1.07971644]
[1752035408789,0.15407649,108550.0,108540.0,0.2511024]
[1752035409019,0.14486491,108550.0,108540.0,1.03950442]
[1752035409234,0.14486491,108550.0,108540.0,0.92883311]
[1752035409909,0.15407683,108550.0,108540.0,0.92883311]
[1752035410136,0.13587346,108550.0,108540.0,0.92883311]
[1752035410361,0.12666171,108550.0,108540.0,1.20767311]
[1752035410987,0.12666171,108550.0,108540.0,1.31834442]
[1752035411214,0.12666171,108550.0,108540.0,1.20767311]
[1752035411456,0.1450852,108550.0,108540.0,0.59552697]
[1752035411703,0.1460852,108550.0,108540.0,1.21067311]
[1752035411911,0.13687337,108550.0,108540.0,1.21067311]
[1752035412121,0.13687346,108550.0,108540.0,1.21067311]
[1752035412334,0.13687337,108550.0,108540.0,1.21067311]
[1752035412545,0.13687329,108550.0,108540.0,1.21067311]
[1752035412777,0.12866171,108550.0,108540.0,1.21267311]
[1752035413423,0.12866171,108550.0,108540.0,1.41478135]
[1752035413638,0.12866171,108550.0,108540.0,1.72085442]
[1752035413855,0.12866171,108550.0,108540.0,1.71014649]
[1752035414308,0.002,108570.0,108560.0,0.24526337]
[1752035414524,0.0113504,108570.0,108560.0,1.43102141]
[1752035414977,0.0113504,108570.0,108560.0,1.12494834]
[1752035415188,0.02977075,108570.0,108560.0,1.02502089]
[1752035415845,0.04098114,108570.0,108560.0,1.03102089]
[1752035416289,0.03177075,108570.0,108560.0,1.03102089]
[1752035417346,0.02256045,108570.0,108560.0,1.33709396]
[1752035417595,0.03177058,108570.0,108560.0,1.33709396]
[1752035418296,0.02256045,108570.0,108560.0,1.33709396]
[1752035419177,0.03177067,108570.0,108560.0,1.33709396]
[1752035419595,0.0133504,108570.0,108560.0,1.33709396]
[1752035420018,0.02256053,108570.0,108560.0,0.72494782]
[1752035420225,0.02256053,108570.0,108560.0,1.03102089]
[1752035420432,0.0133504,108570.0,108560.0,1.03102089]
[1752035421680,0.00414044,108570.0,108560.0,1.03102089]
[1752035422093,0.00414044,108570.0,108560.0,1.33709396]
[1752035422510,0.01335032,108570.0,108560.0,1.33709396]
[1752035422946,0.02256037,108570.0,108560.0,1.30381751]
[1752035423154,0.02256037,108570.0,108560.0,1.33679888]
[1752035424173,0.02256037,108570.0,108560.0,1.41944912]
[1752035425824,0.52944715,108570.0,108560.0,0.15033911]
[1752035426030,0.54584715,108570.0,108560.0,0.23459895]
[1752035426238,0.54584715,108570.0,108560.0,0.15033911]
[1752035426662,0.23977408,108570.0,108560.0,0.15033911]
[1752035426864,0.54584715,108570.0,108560.0,0.15033911]
[1752035428138,0.54584715,108570.0,108560.0,0.28969911]
[1752035428568,0.54584715,108570.0,108560.0,0.15034142]
[1752035428989,0.54558093,108570.0,108560.0,0.15034142]
[1752035429623,0.23977408,108570.0,108560.0,0.15034142]
[1752035432234,0.54558093,108570.0,108560.0,0.15034142]
[1752035433258,0.23977408,108570.0,108560.0,0.15034142]
[1752035436318,0.23977408,108570.0,108560.0,0.10911475]
[1752035437403,0.23977408,108570.0,108560.0,0.19176499]
[1752035439304,0.23977408,108570.0,108560.0,0.13666483]
[1752035439529,0.23977408,108570.0,108560.0,0.19183905]
[1752035440296,0.23977408,108570.0,108560.0,0.13666483]
[1752035445879,0.19610783,108570.0,108560.0,0.13669807]
[1752035446081,0.50191468,108570.0,108560.0,0.13669807]
[1752035446706,0.52033537,108570.0,108560.0,0.13669807]
[1752035448770,0.52033537,108570.0,108560.0,0.13672137]
[1752035450310,0.21452852,108570.0,108560.0,0.13672137]
[1752035450466,0.52033537,108570.0,108560.0,0.13672137]
[1752035451020,0.52032687,108570.0,108560.0,0.13672137]
[1752035451636,0.52032687,108570.0,108560.0,0.13672302]
[1752035453007,0.48732687,108570.0,108560.0,0.13672302]
[1752035453214,0.62656687,108570.0,108560.0,0.13672302]
[1752035453830,0.64216687,108570.0,108560.0,0.13672302]
[1752035454256,0.65726687,108570.0,108560.0,0.13672302]
[1752035454464,0.64216687,108570.0,108560.0,0.13672703]
[1752035456954,0.50292687,108570.0,108560.0,0.13672703]
[1752035457189,0.64212687,108570.0,108560.0,0.13672703]
[1752035461274,0.32072852,108570.0,108560.0,0.13672703]
[1752035461478,0.18152852,108570.0,108560.0,0.33016843]
[1752035461657,0.62648687,108570.0,108560.0,0.33937984]
[1752035462695,0.61727665,108570.0,108560.0,0.33937984]
[1752035465258,0.61727665,108570.0,108560.0,0.33938947]
[1752035469706,0.61727665,108570.0,108560.0,0.34860079]
[1752035469905,0.21659602,108580.0,108560.0,0.36702225]
[1752035470104,0.5979313,108580.0,108570.0,0.05524222]
[1752035470309,0.7370913,108580.0,108570.0,0.10332864]
[1752035470712,0.7529913,108580.0,108570.0,0.10332864]
[1752035471763,0.44719295,108580.0,108570.0,0.10332864]
[1752035471996,0.7529913,108580.0,108570.0,0.10332864]
[1752035472324,1.06078965,108580.0,108570.0,0.10432864]
[1752035472748,0.7549913,108580.0,108570.0,0.10432864]
[1752035472950,0.6158313,108580.0,108570.0,0.10432864]
[1752035473145,0.7550313,108580.0,108570.0,0.10432864]
[1752035473349,0.7550313,108580.0,108570.0,0.10532864]
[1752035477529,0.7550313,108580.0,108570.0,0.09669718]
[1752035477735,0.7550313,108580.0,108570.0,0.10532774]
[1752035478879,1.06082965,108580.0,108570.0,0.10532774]
[1752035479085,0.6158313,108580.0,108570.0,0.10532774]
[1752035479438,1.06078965,108580.0,108570.0,0.10532774]
[1752035483090,0.7225913,108580.0,108570.0,0.10532774]
[1752035483293,0.63115437,108580.0,108570.0,0.10532774]
[1752035484378,0.63115437,108580.0,108570.0,0.18797798]
[1752035484902,0.63115437,108580.0,108570.0,0.22027798]
[1752035485540,0.63115437,108580.0,108570.0,0.20417798]
[1752035485672,0.18619602,108580.0,108570.0,0.38140149]
[1752035485882,0.36219355,108580.0,108570.0,0.49662761]
[1752035486122,0.17803757,108580.0,108570.0,1.04400409]
[1752035486528,0.17803757,108580.0,108570.0,1.03537353]
[1752035487051,0.18724736,108580.0,108570.0,1.03537353]
[1752035487491,0.18724736,108580.0,108570.0,1.04400097]
[1752035487695,0.02041832,108580.0,108570.0,1.04400097]
[1752035487870,0.03883731,108580.0,108570.0,1.04400097]
[1752035488307,0.02041832,108580.0,108570.0,1.04400097]
[1752035488520,0.002,108580.0,108570.0,0.96135073]
[1752035488721,0.01120903,108580.0,108570.0,0.96135073]
[1752035489124,0.002,108580.0,108570.0,0.96135073]
[1752035489325,0.01120903,108580.0,108570.0,0.96135073]
[1752035489444,0.002,108580.0,108570.0,0.96135073]
[1752035492028,0.002,108580.0,108570.0,0.96035073]
[1752035492235,0.42068578,108590.0,108580.0,0.24272434]
[1752035492557,0.42068578,108590.0,108580.0,0.73443492]
[1752035493135,0.27227708,108590.0,108580.0,0.73443492]
[1752035493316,0.2446516,108590.0,108580.0,0.68030299]
[1752035493519,0.26306813,108590.0,108580.0,0.68030299]
[1752035493720,0.26506813,108590.0,108580.0,0.68130299]
[1752035493975,0.26506813,108590.0,108580.0,0.67267555]
[1752035494351,0.27427665,108590.0,108580.0,0.67267555]
[1752035495464,0.27427665,108590.0,108580.0,0.72777518]
[1752035495786,0.28348526,108590.0,108580.0,0.72777518]
[1752035495977,0.28348526,108590.0,108580.0,0.67267555]
[1752035497148,0.27427665,108590.0,108580.0,0.67267555]
[1752035497355,0.27427665,108590.0,108580.0,0.68128066]
[1752035497807,0.28348534,108590.0,108580.0,0.68128066]
[1752035499054,0.29269412,108590.0,108580.0,0.68128066]
[1752035499272,0.28348534,108590.0,108580.0,0.68128066]
[1752035500833,0.29269412,108590.0,108580.0,0.68128066]
[1752035501856,0.29250651,108590.0,108580.0,0.68128066]
[1752035503297,0.29250651,108590.0,108580.0,0.77337865]
[1752035504873,0.4766863,108590.0,108580.0,0.76416945]
[1752035505072,0.46747795,108590.0,108580.0,0.77337882]
[1752035505276,0.46747795,108590.0,108580.0,0.78258811]
[1752035506691,0.46747795,108590.0,108580.0,0.82844445]
[1752035506927,0.45826943,108590.0,108580.0,0.82844445]
[1752035507790,0.45826943,108590.0,108580.0,0.83765374]
[1752035508006,0.26488146,108590.0,108580.0,0.79179731]
[1752035508186,0.26488112,108590.0,108580.0,0.79179731]
[1752035508390,0.26488061,108590.0,108580.0,0.79179731]
[1752035508602,0.24646399,108590.0,108580.0,1.09759566]
[1752035508810,0.24646399,108590.0,108580.0,1.01489776]
[1752035508811,0.26488052,108590.0,108580.0,1.01489776]
[1752035509059,0.26488052,108590.0,108580.0,1.09749306]
[1752035509264,0.26488052,108590.0,108580.0,1.29339422]
[1752035509673,0.25367217,108590.0,108580.0,1.29139422]
[1752035509867,0.26388044,108590.0,108580.0,1.29339422]
[1752035510049,0.27308896,108590.0,108580.0,1.29539422]
[1752035510259,0.27308888,108590.0,108580.0,1.29539422]
[1752035510835,0.27308888,108590.0,108580.0,1.37799993]
[1752035511034,0.27308888,108590.0,108580.0,1.37797915]
[1752035511467,0.27308888,108590.0,108580.0,1.29537344]
[1752035511695,0.27308888,108590.0,108580.0,1.29537357]
[1752035512350,0.27308879,108590.0,108580.0,1.29537357]
[1752035513851,0.26388044,108590.0,108580.0,1.29537357]
[1752035514593,0.26388044,108590.0,108580.0,1.40564845]
[1752035514867,0.26388044,108590.0,108580.0,1.40568431]
[1752035515376,0.25489273,108590.0,108580.0,1.40568431]
[1752035517126,0.24568446,108590.0,108580.0,1.40568431]
[1752035517759,0.24568446,108590.0,108580.0,1.40570326]
[1752035518415,0.17192931,108590.0,108580.0,1.29542838]
[1752035518840,0.17192923,108590.0,108580.0,1.29542838]
[1752035520141,0.17192923,108590.0,108580.0,1.29543179]
[1752035520592,0.15351278,108590.0,108580.0,1.29543179]
[1752035521280,0.15351278,108590.0,108580.0,1.40570667]
[1752035521727,0.15351278,108590.0,108580.0,1.80297363]
[1752035521947,0.15351278,108590.0,108580.0,2.13435479]
[1752035522161,0.02907834,108590.0,108580.0,2.13435479]
[1752035522371,0.02907834,108590.0,108580.0,1.82855644]
[1752035522593,0.02907834,108590.0,108580.0,1.92851982]
[1752035522809,0.02907834,108590.0,108580.0,1.92451982]
[1752035522810,0.02807834,108590.0,108580.0,1.92451982]
[1752035523032,0.02907834,108590.0,108580.0,1.92751982]
[1752035523249,0.02907834,108590.0,108580.0,2.08051982]
[1752035523458,0.02807834,108590.0,108580.0,2.08613458]
[1752035523667,0.02807834,108590.0,108580.0,2.08313458]
[1752035524722,0.02812514,108590.0,108580.0,2.08713458]
[1752035524982,0.02912514,108590.0,108580.0,2.09113458]
[1752035525396,0.02013878,108590.0,108580.0,2.09113458]
[1752035527583,0.02013878,108590.0,108580.0,1.9808597]
[1752035527797,0.02013878,108590.0,108580.0,0.24824307]
[1752035527798,0.56023345,108590.0,108580.0,0.24824307]
[1752035528004,0.37605443,108590.0,108580.0,0.43357426]
[1752035528253,0.5694424,108590.0,108580.0,0.58230363]
[1752035528460,0.07025608,108590.0,108580.0,0.59151283]
[1752035528663,0.06226494,108590.0,108580.0,0.88931118]
[1752035528892,0.06326494,108590.0,108580.0,0.94643844]
[1752035529110,0.06326494,108590.0,108580.0,0.94843844]
[1752035529344,0.06226494,108590.0,108580.0,0.94643844]
[1752035529580,0.06226494,108590.0,108580.0,0.94543844]
[1752035529795,0.07147389,108590.0,108580.0,0.94543844]
[1752035530013,0.07147389,108590.0,108580.0,0.94643844]
[1752035530877,0.07147389,108590.0,108580.0,0.64064009]
[1752035531083,0.55865684,108590.0,108580.0,0.28008638]
[1752035531291,0.55865684,108590.0,108580.0,0.33692695]